bitfinex/quotes_ETHUSD_20250223
["timestamp","ask_amount","ask_price","bid_price","bid_amount"]
[1740274952638,0.04959884,2763.9,2763.5,4.3507037]
[1740274953564,0.04959884,2763.9,2763.6,3.61845]
[1740274953937,0.04959884,2763.9,2763.5,4.3507037]
[1740274956258,0.04959884,2763.9,2763.7,3.61824]
[1740274956432,0.04959884,2763.9,2763.5,4.3507437]
[1740274956640,0.7912,2763.8,2763.5,0.7322137]
[1740274956856,4.40941,2763.8,2763.5,0.7322137]
[1740274957054,0.0494698,2763.7,2763.5,0.7322137]
[1740274957457,0.7912,2763.8,2763.5,0.7322137]
[1740274957629,0.04939583,2763.6,2763.5,0.7322137]
[1740274957830,0.7912,2763.8,2763.5,0.7322137]
[1740274958055,0.04939583,2763.6,2763.5,0.7322137]
[1740274958255,0.7912,2763.8,2763.5,0.7322137]
[1740274958455,0.04939583,2763.6,2763.5,0.7322137]
[1740274958624,0.7912,2763.8,2763.5,0.7322137]
[1740274958825,0.04939583,2763.6,2763.5,0.7322137]
[1740274959025,0.7912,2763.8,2763.5,0.7322137]
[1740274959230,0.04939583,2763.6,2763.5,0.7322137]
[1740274959531,0.7912,2763.8,2763.5,0.7322137]
[1740274959767,0.0494698,2763.7,2763.5,0.7322137]
[1740274960130,0.7912,2763.8,2763.5,0.7322137]
[1740274960428,0.0494698,2763.7,2763.5,0.7322137]
[1740274960846,0.7912,2763.8,2763.5,4.3508037]
[1740274961046,0.7912,2763.8,2763.5,0.7322137]
[1740274961247,0.0494698,2763.7,2763.5,4.3508037]
[1740274961667,0.7912,2763.8,2763.5,0.7322137]
[1740274961874,0.04939583,2763.6,2763.5,0.7322137]
[1740274962049,0.7912,2763.8,2763.5,4.3507937]
[1740274962251,0.04939583,2763.6,2763.5,4.3507937]
[1740274962572,0.7912,2763.8,2763.5,4.3507937]
[1740274962878,0.04915665,2763.6,2763.5,0.7322137]
[1740274963058,0.7912,2763.8,2763.5,0.7322137]
[1740274963267,0.04915665,2763.6,2763.5,0.7322137]
[1740274963434,0.7912,2763.8,2763.5,4.3508037]
[1740274963634,0.04915665,2763.6,2763.5,4.3508037]
[1740274964368,0.7912,2763.8,2763.5,4.3508037]
[1740274964576,0.04923062,2763.7,2763.5,4.3508037]
[1740274965081,0.7912,2763.8,2763.5,4.3508037]
[1740274965240,0.04915665,2763.6,2763.5,4.3508037]
[1740274965438,5.24,2763.9,2763.6,0.3897]
[1740274965640,5.24,2763.9,2763.7,3.61823]
[1740274965976,5.24,2763.9,2763.8,3.6182]
[1740274966682,0.55,2764.1,2763.7,3.61832]
[1740274967243,6.0299,2764.2,2764.0,3.61785]
[1740274967578,6.5799,2764.2,2764.1,3.61781]
[1740274968014,6.0299,2764.2,2764.0,3.61787]
[1740274968303,5.24,2764.2,2763.9,3.61795]
[1740274968512,5.24,2764.2,2764.1,3.61781]
[1740274968912,5.24,2764.2,2764.0,3.61793]
[1740274969210,5.24,2764.2,2763.8,3.61812]
[1740274969913,5.24,2764.2,2763.9,3.61805]
[1740274970664,5.24,2764.2,2764.0,0.71994521]
[1740274971165,0.04777793,2764.1,2764.0,0.71994521]
[1740274973068,6.61756,2764.3,2764.0,0.71994521]
[1740274973264,0.04777793,2764.1,2764.0,0.71994521]
[1740274973469,6.61756,2764.3,2764.0,0.71994521]
[1740274973700,0.04777793,2764.1,2764.0,0.71994521]
[1740274973898,6.61756,2764.3,2764.0,0.71994521]
[1740274974490,0.04785188,2764.2,2764.0,0.71994521]
[1740274974890,6.61756,2764.3,2764.0,0.71994521]
[1740274975094,0.04777793,2764.1,2764.0,0.71994521]
[1740274976047,6.61756,2764.3,2764.0,0.71994521]
[1740274976650,0.04785188,2764.2,2764.0,0.71994521]
[1740274977010,6.61742,2764.4,2764.0,0.71994521]
[1740274977233,0.04777793,2764.1,2764.0,0.71994521]
[1740274977541,3.61755,2764.3,2764.0,0.71994521]
[1740274977927,0.04785188,2764.2,2764.0,0.71994521]
[1740274978102,3.61755,2764.3,2764.0,0.71994521]
[1740274978506,0.04785188,2764.2,2764.0,0.71994521]
[1740274978819,3.61755,2764.3,2764.0,0.71994521]
[1740274979014,0.04796682,2764.1,2764.0,0.71994521]
[1740274979222,3.61755,2764.3,2764.0,0.71994521]
[1740274979421,0.04796682,2764.1,2764.0,0.71994521]
[1740274979621,3.61755,2764.3,2764.0,0.71994521]
[1740274979865,0.04796682,2764.1,2764.0,0.71994521]
[1740274980149,3.61755,2764.3,2764.0,0.71994521]
[1740274980652,0.04804077,2764.2,2764.0,0.71994521]
[1740274981026,6.61752,2764.4,2764.0,0.71994521]
[1740274981227,0.04796682,2764.1,2764.0,0.71994521]
[1740274981427,6.61752,2764.4,2764.0,0.71994521]
[1740274981625,0.04796682,2764.1,2764.0,0.71994521]
[1740274982148,6.61752,2764.4,2764.0,0.71994521]
[1740274982357,0.04811471,2764.3,2764.0,0.71994521]
[1740274988285,0.04811471,2764.3,2764.0,1.10964521]
[1740274989135,0.04811471,2764.3,2764.0,4.72758521]
[1740274990039,0.04811471,2764.3,2764.0,1.10964521]
[1740274995514,3.61742,2764.4,2764.0,0.71994521]
[1740274995701,0.04818557,2764.2,2764.0,0.71994521]
[1740274995908,3.61742,2764.4,2764.0,0.71994521]
[1740274996068,0.04811162,2764.1,2764.0,0.71994521]
[1740274996268,3.61742,2764.4,2764.0,0.71994521]
[1740274996469,0.04811162,2764.1,2764.0,0.71994521]
[1740274996976,3.61757,2764.3,2764.0,0.71994521]
[1740274997179,0.04818557,2764.2,2764.0,0.71994521]
[1740274997422,0.04818557,2764.2,2763.5,1.90403408]
[1740274997423,2.43745777,2764.1,2763.3,0.3897]
[1740274997594,3.61834,2763.7,2763.3,0.3897]
[1740274997775,0.04772921,2763.6,2763.3,0.3897]
[1740274998622,0.04772921,2763.6,2763.5,0.7146221]
[1740274999012,3.6183,2763.8,2763.5,0.7146221]
[1740274999197,0.0475592,2763.6,2763.5,0.7146221]
[1740274999399,3.6183,2763.8,2763.5,0.7146221]
[1740274999599,0.04763318,2763.7,2763.6,3.61834]
[1740274999785,6.0418,2764.1,2763.6,3.61834]
[1740274999985,0.04769136,2764.0,2763.6,3.61846]
[1740275000595,0.04769136,2764.0,2763.6,3.61845]
[1740275000935,0.59769136,2764.0,2763.5,0.7146221]
[1740275001136,0.8028,2763.7,2763.5,0.7146221]
[1740275001491,0.04739549,2763.6,2763.5,0.7146221]
[1740275005635,3.61823,2763.8,2763.5,0.7146221]
[1740275005793,0.04584192,2763.6,2763.5,0.7146221]
[1740275005996,3.61823,2763.8,2763.5,0.7146221]
[1740275006330,0.04591589,2763.7,2763.5,0.7146221]
[1740275006701,3.6184,2763.7,2763.5,0.7146221]
[1740275006906,0.04584192,2763.6,2763.3,0.3897]
[1740275007608,3.61834,2763.7,2763.3,0.3897]
[1740275007940,0.04584192,2763.6,2763.3,0.3897]
[1740275008792,4.42142,2763.5,2763.0,0.3897]
[1740275008992,0.04569395,2763.4,2763.0,0.6467]
[1740275009240,0.04569395,2763.4,2763.1,0.74117283]
[1740275009745,0.04569395,2763.4,2763.1,4.36026283]
[1740275009908,0.04569395,2763.4,2763.1,0.74117283]
[1740275011851,3.61893,2763.3,2762.8,4.00918]
[1740275012003,5.28569395,2763.4,2762.8,4.00912]
[1740275012204,5.28569395,2763.4,2762.9,3.6193]
[1740275013555,0.798,2763.3,2762.8,3.6195]
[1740275013855,0.04482605,2763.2,2762.8,3.6195]
[1740275014253,0.798,2763.3,2762.9,3.61938]
[1740275014542,0.04475206,2763.1,2762.7,11.26764]
[1740275014747,4.41692,2763.3,2762.7,13.28963178]
[1740275014905,4.41692,2763.3,2762.7,11.26764]
[1740275015105,0.04484726,2763.2,2762.7,11.26764]
[1740275015306,0.04484726,2763.2,2762.8,3.61945]
[1740275015739,0.04474147,2763.1,2762.8,3.61945]
[1740275016243,0.04466747,2763.0,2762.8,3.61945]
[1740275016754,4.41687,2763.3,2762.8,3.61945]
[1740275017159,0.04476246,2763.2,2762.8,3.61945]
[1740275017469,4.41687,2763.3,2762.8,3.61945]
[1740275017770,0.04476246,2763.2,2762.8,3.61945]
[1740275017953,4.41687,2763.3,2762.8,3.61945]
[1740275018118,0.04476246,2763.2,2762.8,3.61945]
[1740275018318,4.41687,2763.3,2762.8,3.61945]
[1740275018860,0.04476246,2763.2,2762.8,3.61945]
[1740275019168,4.41687,2763.3,2762.8,3.61945]
[1740275019333,0.04476246,2763.2,2762.8,3.61945]
[1740275019522,0.798,2763.3,2762.9,3.61938]
[1740275019728,0.04476246,2763.2,2762.9,3.61938]
[1740275019923,5.24,2763.4,2763.1,3.61912]
[1740275020130,0.04483644,2763.3,2763.2,3.61899]
[1740275020433,0.04483644,2763.3,2763.2,3.6189]
[1740275020625,0.04483644,2763.3,2763.0,4.00894]
[1740275021282,0.04483644,2763.3,2763.1,3.61901]
[1740275023282,3.66370644,2763.3,2762.8,4.00915]
[1740275023467,0.7831,2763.2,2762.9,0.258]
[1740275023847,0.04468847,2763.1,2762.9,0.258]
[1740275026994,0.04468847,2763.1,2763.0,3.61925]
[1740275027157,6.5731,2763.6,2763.0,4.00895]
[1740275027357,0.04481433,2763.5,2763.2,3.61892]
[1740275027756,0.04481433,2763.5,2763.2,3.61891]
[1740275031607,0.04481433,2763.5,2763.0,4.00888]
[1740275031758,0.04481433,2763.5,2763.1,3.6191]
[1740275034909,0.04481433,2763.5,2763.4,0.73927253]
[1740275035071,0.04481433,2763.5,2763.1,3.6191]
[1740275036082,3.66342433,2763.5,2763.0,3.61918]
[1740275036290,3.66342433,2763.5,2763.0,3.61917]
[1740275037211,0.809,2763.4,2763.0,3.61917]
[1740275037409,0.04314683,2763.3,2762.8,3.61941]
[1740275037813,3.66207683,2763.3,2762.8,3.61941]
[1740275038112,0.04314683,2763.3,2762.8,3.61941]
[1740275038686,0.04314683,2763.3,2763.0,3.61923]
[1740275040643,0.04314683,2763.3,2763.0,3.61916]
[1740275040806,0.04314683,2763.3,2763.0,7.23832]
[1740275041110,0.04314683,2763.3,2763.0,3.61916]
[1740275043156,0.04314683,2763.3,2763.2,3.61899]
[1740275043496,0.809,2763.5,2763.3,3.61883]
[1740275044841,5.24,2763.6,2763.4,3.61873]
[1740275045203,5.24,2763.6,2763.3,3.61885]
[1740275045532,0.809,2763.7,2763.6,3.61846]
[1740275045718,0.809,2764.1,2763.6,3.61846]
[1740275045920,3.809,2764.1,2763.6,3.6184]
[1740275046232,3.809,2764.1,2763.7,3.61833]
[1740275047159,0.03999518,2764.0,2763.7,3.61833]
[1740275053367,0.03999518,2764.0,2763.9,3.61807]
[1740275053730,5.24,2764.2,2764.1,3.61781]
[1740275054269,5.28023763,2764.2,2763.9,3.61807]
[1740275054479,5.28023763,2764.2,2764.0,3.61793]
[1740275054778,5.28023763,2764.2,2764.1,3.61781]
[1740275055847,0.04023763,2764.2,2764.1,3.61781]
[1740275056049,3.0,2764.4,2764.1,3.61781]
[1740275056281,0.04031157,2764.3,2764.1,3.61781]
[1740275057578,0.04031157,2764.3,2764.2,3.61768]
[1740275057760,0.8184,2764.5,2764.2,0.38991984]
[1740275057965,0.8184,2764.5,2764.4,3.61742]
[1740275058203,3.0,2764.7,2764.4,3.61742]
[1740275058484,0.7712,2764.8,2764.6,3.61707]
[1740275059084,5.24,2765.0,2764.2,0.6467]
[1740275059245,0.7712,2765.1,2764.5,0.3897]
[1740275059440,0.7712,2765.1,2764.9,3.61669]
[1740275059641,0.7712,2765.1,2765.0,3.61663]
[1740275059854,0.7712,2765.4,2765.2,3.61627]
[1740275060189,0.7712,2765.4,2765.1,3.61645]
[1740275060695,3.7712,2765.4,2765.0,3.61652]
[1740275060883,7.38739,2765.4,2764.8,4.33025163]
[1740275061183,7.23284,2765.2,2764.8,0.71343163]
[1740275061484,3.61672,2765.0,2764.8,0.71343163]
[1740275061788,0.03756539,2764.9,2764.8,0.71343163]
[1740275062203,0.80876539,2764.9,2764.5,3.8742]
[1740275062368,0.03756539,2764.9,2764.8,3.61689]
[1740275062698,0.7712,2765.2,2764.8,3.61689]
[1740275062900,0.03748352,2764.9,2764.8,3.61689]
[1740275063105,0.7712,2765.2,2764.8,3.61689]
[1740275063608,0.03763131,2765.1,2764.8,3.61689]
[1740275063767,0.03763131,2765.1,2764.7,4.00671]
[1740275064105,0.03763131,2765.1,2764.5,4.30064]
[1740275064313,0.7712,2765.0,2764.5,4.30061]
[1740275064477,0.7712,2765.0,2764.5,0.68339]
[1740275064799,0.03748982,2764.9,2764.5,4.30067]
[1740275065400,3.65427982,2764.9,2764.5,0.257]
[1740275065562,3.61705,2764.7,2764.5,0.257]
[1740275065771,0.80846809,2764.6,2764.5,0.257]
[1740275069099,0.03726809,2764.6,2764.5,0.257]
[1740275069414,0.7712,2764.8,2764.5,3.87429]
[1740275069624,0.037342,2764.7,2764.5,3.87429]
[1740275069826,0.7712,2764.8,2764.5,3.87429]
[1740275069994,0.037342,2764.7,2764.5,0.257]
[1740275070195,0.7712,2764.8,2764.5,0.257]
[1740275070412,0.037342,2764.7,2764.5,0.257]
[1740275070613,0.7712,2764.8,2764.5,0.257]
[1740275070814,0.037342,2764.7,2764.5,0.257]
[1740275071135,0.7712,2764.8,2764.5,0.257]
[1740275071322,0.03734998,2764.6,2764.5,0.257]
[1740275071493,0.7712,2764.8,2764.5,0.257]
[1740275071694,0.03734998,2764.6,2764.5,0.257]
[1740275071894,0.7712,2764.8,2764.5,0.257]
[1740275072127,0.03734998,2764.6,2764.5,0.257]
[1740275072333,0.7712,2764.8,2764.5,0.257]
[1740275072827,0.0374239,2764.7,2764.5,0.257]
[1740275073030,0.7712,2764.8,2764.5,0.257]
[1740275073325,0.0374239,2764.7,2764.5,0.257]
[1740275073730,0.7712,2764.8,2764.5,0.257]
[1740275073894,0.03729211,2764.6,2764.5,0.257]
[1740275074095,0.7712,2764.8,2764.5,0.257]
[1740275074640,0.03733424,2764.7,2764.5,0.257]
[1740275074841,0.7712,2764.8,2764.5,0.257]
[1740275074990,0.03733424,2764.7,2764.5,0.257]
[1740275075187,0.7712,2764.8,2764.5,0.257]
[1740275075518,0.03733424,2764.7,2764.5,0.257]
[1740275075886,0.7712,2764.8,2764.5,0.257]
[1740275076194,0.7712,2764.8,2764.5,3.87429]
[1740275076392,0.03733424,2764.7,2764.5,4.46823337]
[1740275076721,0.7712,2764.8,2764.5,4.46823337]
[1740275076892,0.03726032,2764.6,2764.5,4.46823337]
[1740275077089,4.37424,2765.0,2764.6,3.61712]
[1740275077291,3.61682,2764.9,2764.5,1.24064337]
[1740275078033,0.7576,2765.0,2764.5,4.85781337]
[1740275078192,0.7576,2765.0,2764.6,4.10294934]
[1740275078523,3.61659,2765.1,2764.6,4.10294934]
[1740275078920,3.61669,2765.0,2764.6,0.48579934]
[1740275079227,3.61677,2764.9,2764.5,4.26394]
[1740275079531,4.37456,2764.8,2764.5,0.257]
[1740275080234,0.03722716,2764.7,2764.5,0.257]
[1740275080431,4.37456,2764.8,2764.5,0.257]
[1740275080593,0.03722716,2764.7,2764.5,0.257]
[1740275080794,0.7576,2764.8,2764.5,0.257]
[1740275080989,0.03722716,2764.7,2764.5,0.257]
[1740275081331,3.61666,2765.0,2764.6,3.61715]
[1740275081524,4.37416,2765.1,2764.6,3.61715]
[1740275081732,4.37416,2765.1,2764.6,4.004565]
[1740275083394,3.61663,2765.0,2764.6,4.004565]
[1740275083832,0.03742539,2764.9,2764.6,4.004565]
[1740275084137,0.03742539,2764.9,2764.6,0.387415]
[1740275086464,3.65420539,2764.9,2764.6,0.387415]
[1740275086627,3.61696,2764.8,2764.5,0.257]
[1740275086837,0.03697056,2764.7,2764.5,0.257]
[1740275087014,3.61696,2764.8,2764.5,0.257]
[1740275087219,0.03697056,2764.7,2764.5,0.257]
[1740275087444,3.61702,2764.8,2764.5,0.257]
[1740275087616,0.79457056,2764.7,2764.5,0.257]
[1740275088627,4.41161056,2764.7,2764.6,0.72590693]
[1740275090157,4.41166056,2764.7,2764.2,3.61762]
[1740275090329,0.03697056,2764.7,2764.2,4.405837]
[1740275090716,0.03697056,2764.7,2764.3,3.61755]
[1740275090945,0.03697056,2764.7,2764.4,3.61737]
[1740275091251,0.03683366,2764.6,2764.4,3.61737]
[1740275091455,5.24,2764.8,2764.5,0.3897]
[1740275091752,0.03690757,2764.7,2764.5,0.3897]
[1740275091954,0.03690757,2764.7,2764.5,4.769372]
[1740275092165,5.24,2764.8,2764.5,8.386532]
[1740275092364,0.03675805,2764.6,2764.5,4.769322]
[1740275092543,5.24,2764.8,2764.5,4.769322]
[1740275092746,0.03675805,2764.6,2764.5,4.769322]
[1740275092944,5.24,2764.8,2764.5,4.769322]
[1740275093144,0.03675805,2764.6,2764.5,4.769322]
[1740275093657,5.24,2764.8,2764.5,4.769322]
[1740275093843,5.24,2764.8,2764.7,3.61702]
[1740275094431,4.39359,2765.1,2764.7,3.61702]
[1740275094631,0.03705368,2765.0,2764.7,3.61702]
[1740275095865,0.03705368,2765.0,2764.8,3.61681]
[1740275096270,7.39332,2765.3,2764.9,3.61676]
[1740275096443,0.03658938,2765.2,2765.1,3.6165]
[1740275096647,4.39285,2765.6,2765.1,3.6165]
[1740275096835,3.03540808,2765.5,2765.1,3.6165]
[1740275097331,0.03540808,2765.5,2764.9,3.00487023]
[1740275097656,0.03540808,2765.5,2765.3,3.61622]
[1740275097838,3.0,2765.7,2765.3,3.61622]
[1740275098038,0.03548195,2765.6,2765.3,3.61622]
[1740275098934,0.03548195,2765.6,2765.5,3.61598]
[1740275099466,0.7848,2766.0,2765.7,3.6157]
[1740275099669,0.7848,2766.0,2765.7,3.61564]
[1740275099869,0.7848,2766.3,2765.7,0.400534]
[1740275100075,0.7848,2766.3,2765.8,3.61549]
[1740275100374,5.9985,2766.5,2766.2,3.61496]
[1740275100540,5.9985,2766.5,2766.0,0.3897]
[1740275100943,3.61488,2766.4,2766.0,0.3897]
[1740275101137,3.61518,2766.2,2765.7,4.26233]
[1740275101364,3.61518,2766.2,2765.7,5.050151]
[1740275101549,5.9985,2766.5,2765.7,1.434521]
[1740275101765,3.61524,2766.1,2765.7,1.434521]
[1740275101961,5.9985,2766.5,2765.7,0.787821]
[1740275101962,3.61559,2765.8,2765.7,0.787821]
[1740275102162,3.61585,2765.6,2765.5,0.257]
[1740275102854,3.61605,2765.5,2765.2,0.3897]
[1740275103049,3.61572,2765.7,2765.2,0.3897]
[1740275103296,0.03685756,2765.8,2765.3,3.61622]
[1740275103460,0.03685756,2765.8,2765.4,0.400592]
[1740275103688,3.65244756,2765.8,2765.4,0.400592]
[1740275104092,0.03685756,2765.8,2765.4,4.016632]
[1740275104260,3.65245756,2765.8,2765.4,0.400592]
[1740275104462,3.65245756,2765.8,2765.3,3.61621]
[1740275104663,0.03685756,2765.8,2765.3,3.61621]
[1740275104962,0.03685756,2765.8,2765.2,0.3897]
[1740275104963,0.03685756,2765.8,2765.5,3.61597]
[1740275105153,0.03685756,2765.8,2765.6,0.3897]
[1740275105353,8.85528,2766.1,2765.6,0.3897]
[1740275105675,3.61546,2765.9,2765.6,0.3897]
[1740275106180,0.03687015,2765.8,2765.6,0.3897]
[1740275106477,3.61578,2765.7,2765.4,0.3897]
[1740275106779,3.65257,2765.7,2765.1,10.56979281]
[1740275106984,3.61587,2765.6,2765.2,1.65346479]
[1740275107276,0.03664227,2765.5,2765.2,1.65346479]
[1740275107645,3.65262227,2765.5,2765.1,6.95341281]
[1740275107845,0.03664227,2765.5,2765.1,10.56984281]
[1740275109091,0.03664227,2765.5,2765.1,6.95341281]
[1740275109272,3.65263227,2765.5,2765.1,6.95341281]
[1740275109879,0.03664227,2765.5,2765.1,6.95341281]
[1740275110082,0.03664227,2765.5,2765.2,1.44870498]
[1740275110994,3.61637,2765.2,2765.1,5.58817076]
[1740275111354,3.65277806,2765.2,2765.1,5.58817076]
[1740275113444,0.03640806,2765.2,2765.1,5.58817076]
[1740275113644,4.37468,2765.4,2765.1,5.58817076]
[1740275113883,0.03632622,2765.2,2765.1,5.58817076]
[1740275114083,4.37468,2765.4,2765.1,6.53436384]
[1740275114271,0.03620661,2765.2,2765.1,6.92406384]
[1740275114472,3.61618,2765.4,2765.1,6.92406384]
[1740275114680,0.03620661,2765.2,2765.1,6.92406384]
[1740275114880,3.61598,2765.5,2765.1,6.92406384]
[1740275115068,0.03620661,2765.2,2765.1,5.97787076]
[1740275115269,3.61598,2765.5,2765.1,5.97787076]
[1740275115470,0.03620661,2765.2,2765.1,5.97787076]
[1740275115674,3.61598,2765.5,2765.1,5.97787076]
[1740275115900,0.03574402,2765.2,2765.1,5.97787076]
[1740275116104,3.61615,2765.4,2765.1,5.97787076]
[1740275116405,0.03546721,2765.2,2765.1,5.97787076]
[1740275116568,3.61615,2765.4,2765.1,5.97787076]
[1740275116770,0.03546721,2765.2,2765.1,5.97787076]
[1740275117083,0.03481091,2765.2,2765.1,5.97787076]
[1740275117286,3.61615,2765.4,2765.1,5.97787076]
[1740275117478,0.03481091,2765.2,2765.1,6.93733284]
[1740275117661,9.67272,2765.9,2765.1,6.93733284]
[1740275117858,9.67278,2765.9,2765.4,3.61602]
[1740275118082,3.61573,2765.7,2765.1,6.93733284]
[1740275118324,0.8172,2765.5,2765.1,6.93733284]
[1740275118561,3.61586,2765.6,2765.1,6.93733284]
[1740275118562,0.03510641,2765.6,2765.2,4.06744158]
[1740275118763,0.03495867,2765.4,2765.2,4.06744158]
[1740275118989,0.8172,2765.7,2765.2,4.06744158]
[1740275119202,0.03488479,2765.3,2765.2,4.06744158]
[1740275119512,0.8172,2765.7,2765.3,3.61621]
[1740275120299,0.8172,2765.7,2765.3,7.23238]
[1740275120499,0.8172,2765.7,2765.3,5.10395644]
[1740275121195,0.8172,2765.7,2765.3,1.48778644]
[1740275121400,3.61595,2765.6,2765.1,6.23487076]
[1740275121905,0.03405901,2765.5,2765.1,6.23487076]
[1740275122111,0.03405901,2765.5,2765.2,3.61628]
[1740275122317,4.43292,2765.7,2765.3,3.61623]
[1740275122492,0.03398513,2765.4,2765.3,3.61623]
[1740275122694,4.43292,2765.7,2765.3,4.96296808]
[1740275122907,0.03398513,2765.4,2765.3,4.96296808]
[1740275123103,4.43292,2765.7,2765.3,4.96296808]
[1740275123831,4.43292,2765.7,2765.1,9.85124076]
[1740275124116,4.43292,2765.7,2765.1,13.46761076]
[1740275124322,4.43292,2765.7,2765.1,9.85124076]
[1740275124520,4.43292,2765.7,2765.2,3.61637]
[1740275124730,4.43292,2765.7,2765.1,9.85124076]
[1740275124884,3.61606,2765.5,2765.1,5.84517076]
[1740275125639,3.6162,2765.4,2765.1,5.58817076]
[1740275125926,3.61618,2765.4,2765.1,5.58817076]
[1740275129718,3.61604,2765.5,2765.1,5.58817076]
[1740275129928,3.61618,2765.4,2765.1,5.58817076]
[1740275130593,3.61628,2765.3,2765.1,5.58817076]
[1740275132222,0.8172,2765.6,2765.1,5.58817076]
[1740275132430,3.61623,2765.4,2765.1,5.58817076]
[1740275133412,3.61617,2765.4,2765.1,5.58817076]
[1740275136036,3.0,2765.6,2765.2,4.00601]
[1740275136924,3.0,2765.6,2765.2,4.00599]
[1740275137229,0.8024,2765.8,2765.3,3.61615]
[1740275137230,3.0,2765.8,2765.3,3.61615]
[1740275137527,5.24,2765.9,2765.6,0.3897]
[1740275138297,8.85546,2765.9,2765.6,0.3897]
[1740275139129,3.61546,2765.9,2765.6,0.3897]
[1740275139430,7.231,2765.9,2765.6,0.3897]
[1740275140642,3.61546,2765.9,2765.6,0.3897]
[1740275142022,7.23102,2765.9,2765.6,0.3897]
[1740275142421,3.61571,2765.8,2765.3,0.3897]
[1740275142729,7.23244,2765.4,2765.1,5.97787076]
[1740275143230,3.61622,2765.4,2765.1,5.97787076]
[1740275143533,3.61621,2765.4,2765.1,5.97787076]
[1740275144829,3.61637,2765.2,2765.1,5.58817076]
[1740275145146,3.61626,2765.3,2765.1,5.58817076]
[1740275147532,0.7922,2765.4,2765.1,5.58817076]
[1740275147850,3.61603,2765.5,2765.1,5.58817076]
[1740275150032,7.23209,2765.5,2765.1,5.58817076]
[1740275150343,3.61603,2765.5,2765.1,5.58817076]
[1740275152441,3.61603,2765.5,2765.1,9.20465076]
[1740275152664,3.61603,2765.5,2765.1,6.9414616]
[1740275152940,3.61603,2765.5,2765.2,0.3897]
[1740275153805,7.2321,2765.5,2765.2,0.3897]
[1740275154142,3.61603,2765.5,2765.2,0.3897]
[1740275156043,7.23212,2765.5,2765.2,0.3897]
[1740275156351,7.23209,2765.5,2765.1,5.58817076]
[1740275156650,3.61621,2765.4,2765.1,5.58817076]
[1740275161239,3.61637,2765.2,2765.1,5.58817076]
[1740275163373,4.44357,2765.2,2765.1,5.58817076]
[1740275164548,3.61696,2764.8,2764.5,0.257]
[1740275166446,3.0,2764.9,2764.3,1.10177395]
[1740275166645,3.61774,2764.2,2764.0,0.3897]
[1740275166947,3.61748,2764.4,2764.0,0.3897]
[1740275167171,7.235,2764.4,2764.0,0.3897]
[1740275167319,3.61748,2764.4,2764.0,0.3897]
[1740275167520,3.61725,2764.6,2764.0,1.10626471]
[1740275167720,3.61725,2764.6,2764.0,5.22231018]
[1740275167959,3.61731,2764.5,2764.0,5.22231018]
[1740275168458,3.61725,2764.6,2764.0,5.22231018]
[1740275168654,3.8272,2764.7,2764.1,3.6177]
[1740275168824,7.44424,2764.7,2764.1,3.6177]
[1740275170059,3.8272,2764.7,2764.2,3.61761]
[1740275170554,7.44424,2764.7,2764.2,3.61761]
[1740275170756,9.0672,2764.9,2764.4,0.3897]
[1740275171174,3.61696,2764.8,2764.4,0.3897]
[1740275171373,3.61696,2764.8,2764.1,4.00749]
[1740275171553,3.61729,2764.5,2764.1,0.3897]
[1740275172257,0.8272,2764.6,2764.1,0.3897]
[1740275172460,3.8272,2764.8,2764.3,3.61753]
[1740275172838,7.44412,2764.8,2764.3,3.61753]
[1740275173465,7.44412,2764.8,2764.1,4.47981047]
[1740275173653,7.44412,2764.8,2764.1,8.09754047]
[1740275175568,7.44412,2764.8,2764.1,4.47980047]
[1740275175773,7.44412,2764.8,2764.2,3.61762]
[1740275176071,5.24,2764.9,2764.5,0.3897]
[1740275176235,5.24,2764.9,2764.5,4.0069]
[1740275177574,5.24,2764.9,2764.5,0.3897]
[1740275177732,3.0,2765.0,2764.5,0.3897]
[1740275177933,6.61663,2765.0,2764.5,0.3897]
[1740275178469,3.0,2765.0,2764.5,4.00697]
[1740275178768,5.24,2765.1,2764.8,3.61687]
[1740275178975,5.24,2765.1,2764.9,0.3897]
[1740275179176,5.24,2765.1,2764.9,4.0064]
[1740275179375,0.8329,2765.4,2765.0,3.61663]
[1740275180282,0.8329,2765.4,2764.9,4.0064]
[1740275180485,4.44911,2765.4,2764.9,0.3897]
[1740275180789,3.61627,2765.3,2764.9,0.3897]
[1740275181771,0.8329,2765.4,2764.9,0.3897]
[1740275181943,0.8329,2765.4,2764.9,4.00646]
[1740275183074,4.44901,2765.4,2764.9,0.3897]
[1740275183577,4.44901,2765.4,2764.9,4.00644]
[1740275186875,4.44901,2765.4,2764.9,0.3897]
[1740275187875,4.20303352,2765.4,2764.7,0.3897]
[1740275188073,3.61643,2765.2,2764.7,0.3897]
[1740275188392,6.61625,2765.3,2764.7,0.3897]
[1740275188847,3.61644,2765.2,2764.7,0.3897]
[1740275189043,3.61637,2765.2,2764.7,0.3897]
[1740275189243,6.61625,2765.3,2764.7,0.3897]
[1740275189438,3.6165,2765.1,2764.7,0.3897]
[1740275190198,5.24,2765.3,2764.7,0.3897]
[1740275190349,5.24,2765.3,2764.8,3.61683]
[1740275190696,5.24,2765.3,2764.9,0.3897]
[1740275195270,5.24,2765.3,2764.9,4.00646]
[1740275195584,6.61608,2765.5,2764.9,4.768738]
[1740275196283,6.0729,2765.7,2764.9,1.152048]
[1740275196587,3.61585,2765.6,2765.0,3.61657]
[1740275196773,6.616,2765.5,2764.9,4.00646]
[1740275198110,3.0,2765.6,2765.0,3.61652]
[1740275198297,3.0,2765.6,2765.1,3.61648]
[1740275198502,3.0,2765.6,2765.2,0.3897]
[1740275199790,3.0,2765.6,2765.2,4.76829]
[1740275200619,3.0,2765.6,2765.2,1.15197]
[1740275200992,3.0,2765.6,2765.2,4.76828]
[1740275201613,3.8329,2765.7,2765.2,4.76828]
[1740275201815,6.0689,2766.0,2765.5,4.00564]
[1740275202021,0.8289,2766.0,2765.5,0.3897]